fUST/lending_fUST_20260114
["ID","MTS","AMOUNT","RATE_DAILY","PERIOD"]
[401891717,1768397446389,-1500.0,0.00014368,2]
[401891719,1768397446398,-1500.0,0.00014368,2]
[401891721,1768397446407,-1500.0,0.00014368,2]
[401891723,1768397446416,-1500.0,0.00014368,2]
[401891725,1768397446426,-1500.0,0.00014368,2]
[401891727,1768397446435,-1500.0,0.00014368,2]
[401891729,1768397446444,-1500.0,0.00014368,2]
[401891731,1768397446453,-1500.0,0.00014368,2]
[401891733,1768397446462,-1500.0,0.00014368,2]
[401891736,1768397446472,-1164.35893779,0.00014368,2]
[401891738,1768397446482,-1500.0,0.00014368,2]
[401891739,1768397446491,-1502.99360219,0.00014368,2]
[401891742,1768397446500,-1500.0,0.00014368,2]
[401891743,1768397446512,-1500.0,0.00014368,2]
[401891745,1768397446521,-738.47106789,0.00014368,2]
[401891747,1768397446530,-158.07183809,0.00014368,2]
[401891750,1768397446540,-2000.0,0.00014376,7]
[401891752,1768397446550,-4721.81328711,0.000145,2]
[401891753,1768397446560,-5194.14465873,0.00014508,2]
[401891755,1768397446570,-5000.0,0.0001451,2]
[401891758,1768397446579,-38340.600132,0.0001451,7]
[401891759,1768397446588,-1922.21804416,0.00014533,2]
[401891762,1768397446598,-100000.0,0.0001459,2]
[401891764,1768397446610,-6257.842991,0.0001459,7]
[401891766,1768397446619,-5542.79538318,0.00014639,2]
[401891768,1768397446628,-900.0,0.00014768,2]
[401891769,1768397446637,-155.0,0.00014794,2]
[401891771,1768397446646,-1159.70838602,0.00014795,2]
[401891773,1768397446655,-586.73306672,0.00014795,2]
[401891775,1768397446664,-1018.01129916,0.00014795,2]
[401891777,1768397446674,-1500.0,0.00014795,2]
[401891779,1768397446683,-665.99620392,0.00014795,2]
[401891781,1768397446692,-622.97821503,0.00014795,2]
[401891783,1768397446701,-805.98884969,0.00014795,2]
[401891786,1768397446711,-1500.0,0.00014795,2]
[401891787,1768397446721,-200.84224431,0.00014795,2]
[401891790,1768397446732,-1500.0,0.00014795,2]
[401891792,1768397446741,-1500.0,0.00014795,2]
[401891794,1768397446750,-1500.0,0.00014795,2]
[401891796,1768397446760,-1500.0,0.00014795,2]
[401891798,1768397446769,-1540.3270641,0.00014795,2]
[401891800,1768397446778,-559.25711422,0.00014795,2]
[401891802,1768397446787,-22857.971988,0.00014795,7]
[401891804,1768397446796,-1082.85856265,0.00014795,2]
[401891806,1768397446805,-1479.00156205,0.00014795,2]
[401891808,1768397446815,-1500.0,0.00014795,2]
[401891810,1768397446824,-1500.0,0.00014795,2]
[401891812,1768397446833,-1500.0,0.00014795,2]
[401891814,1768397446843,-1500.0,0.00014795,2]
[401891816,1768397446853,-1500.0,0.00014795,2]
[401891818,1768397446863,-827.64226173,0.00014795,2]
[401891820,1768397446872,-1292.00440399,0.00014795,2]
[401891822,1768397446881,-1051.15225971,0.00014795,2]
[401891824,1768397446890,-522.48598281,0.00014795,2]
[401891826,1768397446899,-1500.0,0.00014795,2]
[401891828,1768397446908,-1500.0,0.00014795,2]
[401891830,1768397446918,-1500.0,0.00014795,2]
[401891848,1768397447080,-1500.0,0.00014795,2]
[401891851,1768397447099,-1500.0,0.00014795,2]
[401891853,1768397447109,-1500.0,0.00014795,2]
[401891855,1768397447118,-1500.0,0.00014795,2]
[401891857,1768397447128,-927.69304459,0.00014795,2]
[401891859,1768397447137,-6714.36216676,0.00014804,2]
[401891861,1768397447146,-11434.83681079,0.00014816,2]
[401891863,1768397447155,-1211.75757412,0.000149,2]
[401891865,1768397447165,-595.01188659,0.000149,2]
[401891867,1768397447174,-1993.46298652,0.00014916,2]
[401891869,1768397447183,-15644.607479,0.00014916,7]
[401891871,1768397447192,-2000.0,0.00014916,2]
[401891873,1768397447202,-2000.0,0.00014916,2]
[401891875,1768397447211,-1056.99110983,0.00014916,2]
[401891877,1768397447220,-2000.0,0.00014916,2]
[401891879,1768397447229,-503.99870158,0.00014916,2]
[401891881,1768397447239,-2000.0,0.00014916,2]
[401891883,1768397447248,-2000.0,0.00014916,2]
[401891885,1768397447257,-2000.0,0.00014916,2]
[401891888,1768397447266,-878.64680697,0.00014916,2]
[401891890,1768397447275,-2000.0,0.00014916,2]
[401891891,1768397447284,-2000.0,0.00014916,2]
[401891893,1768397447294,-1288.90612665,0.00014916,2]
[401891895,1768397447303,-2000.0,0.00014916,2]
[401891897,1768397447312,-2000.0,0.00014916,2]
[401891899,1768397447321,-1577.72950273,0.00014916,2]
[401891901,1768397447330,-2000.0,0.00014916,2]
[401891903,1768397447339,-1031.81939639,0.00014916,2]
[401891905,1768397447348,-333.13,0.00015,2]
[401891907,1768397447358,-152386.479921,0.00015,7]
[401891909,1768397447367,-1019.00256747,0.00015,2]
[401891911,1768397447375,-35775.62597585,0.00015,2]
[401891913,1768397447385,-151.0,0.00015,2]
[401891915,1768397447394,-1372.43724231,0.00015,3]
[401891917,1768397447403,-151.00724332,0.00015,2]
[401891918,1768397447412,-151.0,0.00015,2]
[401891919,1768397447421,-8932.61499355,0.00015,7]
[401891920,1768397447430,-463.553408,0.00015068,2]
[401891921,1768397447440,-609.95038,0.00015068,7]
[401891922,1768397447448,-800.0,0.00015068,2]
[401891923,1768397447457,-1500.0,0.00015123,2]
[401891924,1768397447466,-39111.518696,0.00015316,7]
[401891925,1768397447476,-1200.0,0.00015316,2]
[401891926,1768397447485,-992.62086011,0.00015342,2]
[401891927,1768397447494,-646.70021057,0.00015342,2]
[401891928,1768397447503,-503.42728186,0.00015342,2]
[401891929,1768397447512,-2000.0,0.00015342,2]
[401891930,1768397447521,-2000.0,0.00015342,2]
[401891931,1768397447531,-2000.0,0.00015342,2]
[401891932,1768397447539,-2000.0,0.00015342,2]
[401891933,1768397447549,-2094.03075988,0.00015342,2]
[401891934,1768397447558,-1873.84265648,0.00015342,2]
[401891935,1768397447567,-2000.0,0.00015342,2]
[401891937,1768397447576,-655.35549971,0.00015342,2]
[401891939,1768397447585,-735.30085754,0.00015342,2]
[401891941,1768397447595,-749.49335299,0.00015342,2]
[401891943,1768397447610,-2000.0,0.00015342,2]
[401891945,1768397447619,-2000.0,0.00015342,2]
[401891948,1768397447628,-2000.0,0.00015342,2]
[401891950,1768397447639,-2000.0,0.00015342,2]
[401891951,1768397447649,-7981.62535178,0.00015347,2]
[401891953,1768397447658,-1524.875951,0.00015364,7]
[401891955,1768397447670,-1613.0,0.00015371,2]
[401891957,1768397447679,-172.56449035,0.000154,2]
[401891959,1768397447688,-204.77151589,0.000154,2]
[401891961,1768397447697,-633.2980032,0.000154,30]
[401891964,1768397447709,-8115.85102926,0.0001544,2]
[401891966,1768397447718,-2500.0,0.00015464,2]
[401891968,1768397447728,-2500.0,0.00015464,2]
[401891970,1768397447740,-2500.0,0.00015464,2]
[401891972,1768397447749,-2500.0,0.00015464,2]
[401891974,1768397447758,-1005.48440654,0.00015464,2]
[401891976,1768397447768,-2500.0,0.00015464,2]
[401891978,1768397447777,-2500.0,0.00015464,2]
[401891980,1768397447786,-2500.0,0.00015464,2]
[401891982,1768397447796,-2500.0,0.00015464,2]
[401891984,1768397447805,-2500.0,0.00015464,2]
[401891986,1768397447815,-2500.0,0.00015464,2]
[401891988,1768397447825,-949.67712416,0.00015544,2]
[401891990,1768397447834,-2000.0,0.00015657,7]
[401891992,1768397447844,-1000.0,0.00015698,2]
[401891994,1768397447853,-492.0,0.00015698,2]
[401891996,1768397447862,-1460.52,0.00015701,2]
[401891998,1768397447872,-160.0,0.00015767,2]
[401892000,1768397447881,-500.0,0.00015767,2]
[401892002,1768397447890,-160.0,0.00015767,2]
[401892004,1768397447900,-500.0,0.00015767,2]
[401892006,1768397447909,-164.08273023,0.00015767,2]
[401892008,1768397447918,-500.0,0.00015767,2]
[401892010,1768397447928,-500.0,0.00015767,2]
[401892012,1768397447937,-500.0,0.00015767,2]
[401892014,1768397447946,-500.0,0.00015767,2]
[401892016,1768397447955,-500.0,0.00015767,2]
[401892018,1768397447964,-500.0,0.00015767,2]
[401892020,1768397447973,-335.36136099,0.00015767,2]
[401892022,1768397447983,-500.0,0.00015767,2]
[401892024,1768397447992,-500.0,0.00015767,2]
[401892026,1768397448001,-500.0,0.00015767,2]
[401892028,1768397448010,-500.0,0.00015767,2]
[401892029,1768397448019,-168.3888056,0.00015767,2]
[401892031,1768397448028,-500.0,0.00015767,2]
[401892033,1768397448037,-168.3888056,0.00015767,2]
[401892035,1768397448046,-500.0,0.00015767,2]
[401892037,1768397448055,-174.61919141,0.00015767,2]
[401892039,1768397448065,-500.0,0.00015767,2]
[401892041,1768397448075,-181.08010149,0.00015767,2]
[401892043,1768397448085,-500.0,0.00015767,2]
[401892045,1768397448095,-187.78006525,0.00015767,2]
[401892047,1768397448104,-500.0,0.00015767,2]
[401892049,1768397448114,-194.72792766,0.00015767,2]
[401892051,1768397448124,-201.93286099,0.00015767,2]
[401892054,1768397448134,-209.40437684,0.00015767,2]
[401892055,1768397448143,-217.15233878,0.00015767,2]
[401892058,1768397448153,-225.18697532,0.00015767,2]
[401892059,1768397448162,-233.51889341,0.00015767,2]
[401892061,1768397448171,-242.15909246,0.00015767,2]
[401892063,1768397448182,-251.11897888,0.00015767,2]
[401892066,1768397448192,-260.4103811,0.00015767,2]
[401892068,1768397448204,-270.0455652,0.00015767,2]
[401892069,1768397448214,-280.03725112,0.00015767,2]
[401892071,1768397448225,-461.67526834,0.00015767,2]
[401892073,1768397448234,-30000.0,0.00015767,2]
[401892075,1768397448244,-290.39862941,0.00015767,2]
[401892077,1768397448253,-301.1433787,0.00015767,2]
[401892079,1768397448263,-2230.315306,0.00015767,2]
[401892081,1768397448273,-1119.07702779,0.00015827,8]
[401892083,1768397448281,-1500.0,0.00015864,2]
[401892085,1768397448290,-559.4878042,0.0001589,2]
[401892087,1768397448300,-2500.0,0.0001589,2]
[401892089,1768397448310,-2500.0,0.0001589,2]
[401892091,1768397448319,-1711.66599686,0.0001589,2]
[401892093,1768397448329,-2500.0,0.0001589,2]
[401892095,1768397448339,-2500.0,0.0001589,2]
[401892097,1768397448348,-2500.0,0.0001589,2]
[401892099,1768397448357,-380.12579905,0.0001589,2]
[401892101,1768397448367,-2500.0,0.0001589,2]
[401892103,1768397448376,-1460.52,0.00015989,2]
[401892105,1768397448385,-1460.52,0.00015989,2]
[401892107,1768397448394,-1460.52,0.00015989,2]
[401892109,1768397448403,-1460.52,0.00015989,2]
[401892111,1768397448412,-1460.52,0.00015989,2]
[401892113,1768397448422,-3000.0,0.00016,2]
[401892115,1768397448431,-97778.796738,0.00016,7]
[401892117,1768397448440,-215.88592206,0.00016,2]
[401892119,1768397448449,-3000.0,0.0001601,2]
[401892121,1768397448458,-3812.189876,0.0001601,7]
[401892123,1768397448467,-3000.0,0.00016012,2]
[401892125,1768397448477,-3000.0,0.00016012,2]
[401892127,1768397448486,-3000.0,0.00016012,2]
[401892129,1768397448495,-1185.37019291,0.00016012,2]
[401892131,1768397448504,-1671.14126243,0.00016012,2]
[401892133,1768397448514,-3000.0,0.00016012,2]
[401892135,1768397448523,-3000.0,0.00016012,2]
[401892137,1768397448532,-3000.0,0.00016012,2]
[401892139,1768397448542,-3000.0,0.00016012,2]
[401892141,1768397448551,-3000.0,0.00016012,2]
[401892143,1768397448560,-3000.0,0.0001602,2]
[401892145,1768397448569,-3000.0,0.0001603,2]
[401892147,1768397448578,-3000.0,0.0001604,2]
[401892149,1768397448587,-3000.0,0.0001605,2]
[401892151,1768397448597,-10863.87895104,0.00016053,2]
[401892153,1768397448609,-1460.52,0.00016059,2]
[401892155,1768397448618,-1460.52,0.00016059,2]
[401892157,1768397448627,-1460.52,0.00016059,2]
[401892159,1768397448636,-1460.52,0.00016059,2]
[401892161,1768397448646,-1460.64,0.00016059,2]
[401892163,1768397448655,-3000.0,0.0001606,2]
[401892165,1768397448665,-3000.0,0.0001607,2]
[401892167,1768397448674,-3000.0,0.0001608,2]
[401892169,1768397448684,-3000.0,0.0001609,2]
[401892170,1768397448693,-229.47,0.0001609,2]
[401892173,1768397448702,-3000.0,0.000161,2]
[401892174,1768397448712,-3000.0,0.0001611,2]
[401892176,1768397448721,-151.0,0.00016116,2]
[401892178,1768397448730,-894.119727,0.00016116,2]
[401892180,1768397448739,-894.119727,0.00016116,2]
[401892182,1768397448748,-894.119727,0.00016116,2]
[401892184,1768397448757,-894.119727,0.00016116,2]
[401892186,1768397448766,-250.0,0.00016116,2]
[401892188,1768397448775,-3000.0,0.0001612,2]
[401892190,1768397448784,-3000.0,0.0001613,2]
[401892192,1768397448793,-3000.0,0.0001614,2]
[401892194,1768397448803,-3000.0,0.0001615,2]
[401892196,1768397448812,-3000.0,0.0001616,2]
[401892198,1768397448823,-1600.0,0.00016164,2]
[401892200,1768397448832,-3000.0,0.0001617,2]
[401892202,1768397448843,-620.66490016,0.0001617,30]
[401892204,1768397448852,-3000.0,0.0001618,2]
[401892206,1768397448861,-3000.0,0.0001619,2]
[401892208,1768397448870,-3000.0,0.000162,2]
[401892210,1768397448880,-3000.0,0.0001621,2]
[401892212,1768397448889,-3000.0,0.0001622,2]
[401892214,1768397448899,-8639.00667344,0.00016227,2]
[401892216,1768397448908,-275.37,0.00016229,2]
[401892219,1768397448918,-3000.0,0.0001623,2]
[401892221,1768397448927,-3000.0,0.0001624,2]
[401892222,1768397448937,-3000.0,0.0001625,2]
[401892225,1768397448946,-3000.0,0.0001626,2]
[401892226,1768397448956,-3000.0,0.0001627,2]
[401892229,1768397448966,-3000.0,0.0001628,2]
[401892231,1768397448977,-160.35823449,0.00016288,2]
[401892233,1768397448987,-3000.0,0.0001629,2]
[401892235,1768397448996,-3000.0,0.000163,2]
[401892237,1768397449005,-151.0,0.000163,2]
[401892239,1768397449015,-3000.0,0.0001631,2]
[401892241,1768397449024,-165.615125,0.0001631,2]
[401892243,1768397449034,-347.76973134,0.00016315,2]
[401892245,1768397449043,-174.61919141,0.00016315,2]
[401892247,1768397449053,-478.75725327,0.00016315,2]
[401892249,1768397449063,-31110.0,0.00016315,2]
[401892251,1768397449072,-2312.83697232,0.00016315,2]
[401892253,1768397449081,-3000.0,0.0001632,2]
[401892255,1768397449090,-3000.0,0.0001633,2]
[401892257,1768397449100,-3000.0,0.0001634,2]
[401892259,1768397449109,-3000.0,0.0001635,2]
[401892261,1768397449118,-3000.0,0.0001636,2]
[401892263,1768397449127,-3000.0,0.0001637,2]
[401892265,1768397449136,-3000.0,0.0001638,2]
[401892266,1768397449145,-151.0,0.0001638,2]
[401892268,1768397449155,-3000.0,0.0001639,2]
[401892271,1768397449164,-3000.0,0.000164,2]
[401892273,1768397449173,-3358.355364,0.0001641,2]
[401892274,1768397449183,-3809.661998,0.00016412,7]
[401892276,1768397449192,-1800.0,0.00016412,2]
[401892278,1768397449201,-500.0,0.00016438,2]
[401892280,1768397449211,-500.0,0.00016438,2]
[401892282,1768397449220,-500.0,0.00016438,2]
[401892285,1768397449229,-500.0,0.00016438,2]
[401892287,1768397449239,-367.29391014,0.00016438,2]
[401892289,1768397449248,-500.0,0.00016438,2]
[401892291,1768397449258,-500.0,0.00016438,2]
[401892293,1768397449267,-595.30780858,0.00016438,2]
[401892294,1768397449276,-151.0,0.00016438,2]
[401892297,1768397449285,-202.375128,0.00016438,2]
[401892299,1768397449295,-151.0,0.00016438,2]
[401892300,1768397449304,-151.0,0.00016438,2]
[401892302,1768397449312,-151.0,0.00016438,2]
[401892304,1768397449322,-261.329291,0.00016438,2]
[401892306,1768397449331,-261.329291,0.00016438,2]
[401892308,1768397449340,-261.329291,0.00016438,2]
[401892310,1768397449349,-261.329291,0.00016438,2]
[401892312,1768397449358,-200.0,0.00016438,2]
[401892314,1768397449368,-164.26686219,0.00016438,2]
[401892316,1768397449377,-2544.67516775,0.00016438,2]
[401892324,1768397449437,-3000.0,0.00016438,2]
[401892326,1768397449447,-3000.0,0.00016438,2]
[401892328,1768397449456,-2819.68437302,0.00016438,2]
[401892330,1768397449465,-3000.0,0.00016438,2]
[401892332,1768397449475,-3000.0,0.00016438,2]
[401892334,1768397449484,-260.29560408,0.00016438,2]
[401892336,1768397449493,-184.29,0.0001644,2]
[401892338,1768397449502,-184.29,0.0001644,2]
[401892340,1768397449511,-184.29,0.0001644,2]
[401892342,1768397449520,-184.29,0.0001644,2]
[401892344,1768397449529,-200.0,0.00016473,2]
[401892346,1768397449537,-3500.0,0.0001656,2]
[401892348,1768397449547,-3500.0,0.0001656,2]
[401892350,1768397449556,-3500.0,0.0001656,2]
[401892351,1768397449565,-3500.0,0.0001656,2]
[401892354,1768397449575,-3500.0,0.0001656,2]
[401892356,1768397449584,-3500.0,0.0001656,2]
[401892358,1768397449593,-3500.0,0.0001656,2]
[401892360,1768397449607,-416.13825137,0.0001656,2]
[401892362,1768397449616,-151.0,0.000167,2]
[401892364,1768397449625,-11434.83681079,0.00016756,2]
[401892366,1768397449634,-2607.434579,0.00016779,7]
[401892368,1768397449644,-1119.07702779,0.0001685,9]
[401892369,1768397449655,-360.6372114,0.00016863,2]
[401892371,1768397449664,-181.08010149,0.00016863,2]
[401892374,1768397449677,-496.47127164,0.00016863,2]
[401892376,1768397449686,-32261.07,0.00016863,2]
[401892377,1768397449695,-2398.4119403,0.00016863,2]
[401892379,1768397449704,-2258.0,0.00016908,2]
[401892382,1768397449715,-2000.0,0.00016939,7]
[401892384,1768397449724,-2100.0,0.0001696,2]
[401892386,1768397449733,-620.03324501,0.00016979,30]
[401892388,1768397449742,-270.0,0.00016986,2]
[401892390,1768397449751,-3587.94374426,0.00016986,2]
[401892392,1768397449762,-3500.0,0.00016986,2]
[401892394,1768397449771,-3500.0,0.00016986,2]
[401892396,1768397449780,-3500.0,0.00016986,2]
[401892398,1768397449790,-95477.61285994,0.00017,2]
[401892400,1768397449799,-4000.0,0.00017108,2]
[401892401,1768397449808,-1692.29139729,0.00017108,2]
[401892403,1768397449817,-3392.75982988,0.00017108,2]
[401892405,1768397449826,-4000.0,0.00017108,2]
[401892408,1768397449835,-4000.0,0.00017108,2]
[401892410,1768397449845,-4000.0,0.00017108,2]
[401892412,1768397449854,-4000.0,0.00017108,2]
[401892413,1768397449863,-1140.2,0.00017233,2]
[401892415,1768397449873,-160.0,0.00017233,2]
[401892416,1768397449882,-1041.66666667,0.00017233,2]
[401892417,1768397449892,-155.0,0.00017259,2]
[401892418,1768397449901,-2400.0,0.0001726,2]
[401892419,1768397449911,-1000.0,0.00017268,2]
[401892421,1768397449920,-791.0,0.00017268,2]
[401892423,1768397449929,-373.98078822,0.00017411,2]
[401892425,1768397449938,-187.78006525,0.00017411,2]
[401892427,1768397449947,-514.84070869,0.00017411,2]
[401892429,1768397449956,-2487.15318209,0.00017411,2]
[401892431,1768397449966,-5000.0,0.00017412,2]
[401892433,1768397449975,-151.0,0.00017412,2]
[401892435,1768397449984,-180.185459,0.00017412,2]
[401892437,1768397449994,-2400.0,0.00017508,2]
[401892439,1768397450003,-174.48080933,0.00017534,2]
[401892441,1768397450013,-400.0,0.00017534,2]
[401892443,1768397450023,-4000.0,0.00017534,2]
[401892445,1768397450032,-4000.0,0.00017534,2]
[401892447,1768397450041,-4000.0,0.00017534,2]
[401892449,1768397450050,-1060.67834647,0.00017544,2]
[401892451,1768397450059,-2137.48177052,0.000176,2]
[401892453,1768397450068,-4500.0,0.00017656,2]
[401892455,1768397450078,-4500.0,0.00017656,2]
[401892457,1768397450088,-3199.34641428,0.00017656,2]
[401892459,1768397450097,-4500.0,0.00017656,2]
[401892461,1768397450106,-4500.0,0.00017656,2]
[401892463,1768397450115,-275.0,0.00017758,2]
[401892465,1768397450123,-400.30202268,0.00017842,2]
[401892467,1768397450133,-1500.0,0.00017863,2]
[401892469,1768397450142,-1119.07702779,0.00017872,10]
[401892471,1768397450151,-258.85518867,0.00017959,2]
[401892473,1768397450159,-194.72792766,0.00017959,2]
[401892475,1768397450168,-533.88981491,0.00017959,2]
[401892477,1768397450178,-2579.17784983,0.00017959,2]
[401892479,1768397450187,-320.0,0.00017964,2]
[401892481,1768397450197,-261.329291,0.00017981,2]
[401892483,1768397450206,-261.329291,0.00017981,2]
[401892485,1768397450215,-261.329291,0.00017981,2]
[401892487,1768397450224,-261.329291,0.00017981,2]
[401892489,1768397450233,-150512.98381193,0.00018,2]
[401892491,1768397450242,-39769.91253842,0.00018,5]
[401892493,1768397450251,-6000.89259863,0.00018,2]
[401892495,1768397450260,-2700.0,0.00018056,2]
[401892497,1768397450270,-4500.0,0.00018082,2]
[401892499,1768397450280,-4500.0,0.00018082,2]
[401892501,1768397450288,-4500.0,0.00018082,2]
[401892503,1768397450297,-368.0,0.00018122,2]
[401892505,1768397450306,-1417.48910491,0.00018204,2]
[401892507,1768397450315,-5000.0,0.00018204,2]
[401892509,1768397450325,-5000.0,0.00018204,2]
[401892512,1768397450334,-5000.0,0.00018204,2]
[401892514,1768397450344,-2000.0,0.0001822,7]
[401892516,1768397450354,-3200.0,0.00018356,2]
[401892518,1768397450363,-463.553408,0.00018493,2]
[401892520,1768397450371,-163.33303318,0.00018494,2]
[401892522,1768397450380,-201.93286099,0.00018507,2]
[401892524,1768397450389,-553.64373807,0.00018507,2]
[401892526,1768397450398,-2674.60743027,0.00018507,2]
[401892527,1768397450407,-3162.0,0.00018598,2]
[401892530,1768397450416,-3000.0,0.00018604,2]
[401892531,1768397450426,-1140.2,0.0001862,2]
[401892533,1768397450435,-600.0,0.0001863,2]
[401892535,1768397450445,-5000.0,0.0001863,2]
[401892538,1768397450455,-5000.0,0.0001863,2]
[401892540,1768397450466,-5000.0,0.0001863,2]
[401892542,1768397450476,-11434.83681079,0.00018697,2]
[401892543,1768397450485,-4088.14205975,0.00018752,2]
[401892546,1768397450495,-5500.0,0.00018752,2]
[401892548,1768397450505,-5500.0,0.00018752,2]
[401892550,1768397450514,-5000.0,0.00018863,2]
[401892552,1768397450523,-1119.07702779,0.00018895,12]
[401892554,1768397450532,-303.10001603,0.000189,2]
[401892556,1768397450541,-719.46252085,0.000189,5]
[401892558,1768397450550,-303.10001603,0.000189,2]
[401892560,1768397450559,-1000.0,0.00018994,2]
[401892562,1768397450568,-1000.0,0.00018994,2]
[401892563,1768397450578,-2603.49,0.00019,2]
[401892565,1768397450589,-17969.48957745,0.00019,2]
[401892568,1768397450599,-209.40437684,0.00019055,2]
[401892570,1768397450610,-574.12855637,0.00019055,2]
[401892571,1768397450619,-2773.56790519,0.00019055,2]
[401892574,1768397450628,-303.10001603,0.00019089,2]
[401892576,1768397450639,-303.10001603,0.00019089,2]
[401892578,1768397450648,-3300.0,0.00019152,2]
[401892580,1768397450657,-2535.6762,0.00019178,2]
[401892582,1768397450666,-167.86,0.00019178,2]
[401892584,1768397450677,-2535.6762,0.00019178,2]
[401892586,1768397450686,-2535.6762,0.00019178,2]
[401892588,1768397450695,-200.0,0.00019178,2]
[401892590,1768397450704,-2078.0,0.00019178,2]
[401892592,1768397450713,-2000.0,0.00019178,2]
[401892594,1768397450723,-200.0,0.00019178,2]
[401892596,1768397450732,-300.0,0.00019178,2]
[401892598,1768397450740,-170.31699663,0.00019178,2]
[401892600,1768397450750,-151.0,0.00019178,2]
[401892602,1768397450759,-151.0,0.00019178,2]
[401892604,1768397450768,-151.0,0.00019178,2]
[401892606,1768397450777,-666.883218,0.00019178,2]
[401892608,1768397450785,-666.883218,0.00019178,2]
[401892610,1768397450794,-666.883218,0.00019178,2]
[401892612,1768397450803,-666.883218,0.00019178,2]
[401892614,1768397450813,-5500.0,0.00019178,2]
[401892616,1768397450822,-5500.0,0.00019178,2]
[401892618,1768397450831,-5500.0,0.00019178,2]
[401892620,1768397450840,-5469.7,0.000192,2]
[401892622,1768397450849,-167.77,0.000192,2]
[401892624,1768397450858,-38726.83,0.000192,2]
[401892626,1768397450867,-339.58,0.000192,2]
[401892628,1768397450877,-336.89,0.000192,2]
[401892630,1768397450886,-500.99801519,0.00019205,5]
[401892632,1768397450895,-303.10001603,0.00019278,2]
[401892633,1768397450905,-303.10001603,0.00019278,2]
[401892636,1768397450915,-4040.44472477,0.000193,2]
[401892637,1768397450923,-6000.0,0.000193,2]
[401892640,1768397450933,-307.61092211,0.00019452,2]
[401892642,1768397450942,-303.10001603,0.00019467,2]
[401892644,1768397450952,-303.10001603,0.00019467,2]
[401892646,1768397450961,-2000.0,0.00019501,7]
[401892648,1768397450971,-204.77151589,0.00019543,56]
[401892650,1768397450981,-1171.67956877,0.00019544,2]
[401892652,1768397450990,-217.15233878,0.00019603,2]
[401892654,1768397450999,-595.37131296,0.00019603,2]
[401892656,1768397451008,-303.10001603,0.00019656,2]
[401892658,1768397451018,-303.10001603,0.00019656,2]
[401892659,1768397451027,-1056.20051056,0.000197,2]
[401892661,1768397451037,-151.0,0.00019726,2]
[401892663,1768397451046,-151.0,0.00019726,2]
[401892665,1768397451055,-151.0,0.00019726,2]
[401892668,1768397451065,-666.883218,0.00019726,2]
[401892670,1768397451075,-666.883218,0.00019726,2]
[401892672,1768397451085,-666.883218,0.00019726,2]
[401892674,1768397451094,-151.0,0.00019726,2]
[401892676,1768397451103,-666.883218,0.00019726,2]
[401892678,1768397451112,-894.119727,0.00019726,2]
[401892680,1768397451121,-894.119727,0.00019726,2]
[401892682,1768397451131,-894.119727,0.00019726,2]
[401892684,1768397451139,-894.119727,0.00019726,2]
[401892686,1768397451148,-800.0,0.00019726,2]
[401892687,1768397451157,-250.0,0.00019726,2]
[401892690,1768397451167,-6000.0,0.00019726,2]
[401892692,1768397451176,-250.0,0.00019726,2]
[401892694,1768397451186,-6000.0,0.00019726,2]
[401892696,1768397451195,-6000.0,0.00019726,2]
[401892698,1768397451204,-454.65002405,0.00019845,4]
[401892700,1768397451214,-454.65002405,0.00019845,4]
[401892702,1768397451223,-6500.0,0.00019848,2]
[401892704,1768397451231,-1119.07702779,0.00019918,13]
[401892706,1768397451240,-500.0,0.0002,2]
[401892708,1768397451249,-500.0,0.0002,2]
[401892709,1768397451258,-500.0,0.0002,2]
[401892711,1768397451267,-9661.0,0.0002,2]
[401892713,1768397451276,-151.55000802,0.0002,2]
[401892716,1768397451286,-300.0,0.0002,2]